[Event "*** Titled Tuesday Blitz"]
[Site "Chess.com"]
[Date "2020.05.12"]
[Round "1"]
[White "IMinTheWings"]
[Black "Pomegranate988"]
[Result "1/2-1/2"]
[WhiteElo "2199"]
[BlackElo "2526"]
[TimeControl "180+1"]
[EndTime "10:08:40 PDT"]
[Termination "Game drawn by repetition"]

1. c4 {[%clk 0:02:47]} 1... g6 {[%clk 0:02:58.6]} 2. d4 {[%clk 0:02:46.3]} 2...
Bg7 {[%clk 0:02:58.9]} 3. Nc3 {[%clk 0:02:45.7]} 3... Nf6 {[%clk 0:02:59.1]} 4.
e4 {[%clk 0:02:45.2]} 4... d6 {[%clk 0:02:59.6]} 5. Be2 {[%clk 0:02:44.8]} 5...
O-O {[%clk 0:02:59.2]} 6. Be3 {[%clk 0:02:45.3]} 6... c5 {[%clk 0:02:54]} 7. d5
{[%clk 0:02:44.6]} 7... e6 {[%clk 0:02:52.3]} 8. Nf3 {[%clk 0:02:44.5]} 8...
exd5 {[%clk 0:02:52]} 9. cxd5 {[%clk 0:02:45.4]} 9... Re8 {[%clk 0:02:50.5]} 10.
Nd2 {[%clk 0:02:45.7]} 10... a6 {[%clk 0:02:47]} 11. a4 {[%clk 0:02:45.1]} 11...
Nbd7 {[%clk 0:02:46.1]} 12. O-O {[%clk 0:02:42.5]} 12... Rb8 {[%clk 0:02:42.3]}
13. a5 {[%clk 0:02:42.4]} 13... b5 {[%clk 0:02:32]} 14. axb6 {[%clk 0:02:41.8]}
14... Nxb6 {[%clk 0:02:32.1]} 15. h3 {[%clk 0:02:34.2]} 15... Nbd7 {[%clk
0:02:07.5]} 16. Qc2 {[%clk 0:02:21.5]} 16... Rb4 {[%clk 0:02:05.2]} 17. Nc4
{[%clk 0:02:17.8]} 17... Nb6 {[%clk 0:01:58.3]} 18. Na5 {[%clk 0:02:14.6]} 18...
Bd7 {[%clk 0:01:57.1]} 19. Bd3 {[%clk 0:02:02.6]} 19... Qc7 {[%clk 0:01:42]} 20.
Bd2 {[%clk 0:01:47.2]} 20... Bb5 {[%clk 0:01:35.1]} 21. Nxb5 {[%clk 0:01:45.6]}
21... Rxb5 {[%clk 0:01:35.2]} 22. Bxb5 {[%clk 0:01:43.9]} 22... axb5 {[%clk
0:01:35.6]} 23. f3 {[%clk 0:01:43.6]} 23... Nh5 {[%clk 0:01:31.9]} 24. Nc6
{[%clk 0:01:41.7]} 24... Nc4 {[%clk 0:01:22]} 25. Ra2 {[%clk 0:01:24.4]} 25...
Nxd2 {[%clk 0:00:48.6]} 26. Qxd2 {[%clk 0:01:24.4]} 26... c4 {[%clk 0:00:48.8]}
27. Kh2 {[%clk 0:01:11.8]} 27... Qb6 {[%clk 0:00:38.4]} 28. Qf2 {[%clk
0:00:55.7]} 28... Qxf2 {[%clk 0:00:36.2]} 29. Rxf2 {[%clk 0:00:56.6]} 29... Nf4
{[%clk 0:00:36.5]} 30. Ra5 {[%clk 0:00:51.5]} 30... Nd3 {[%clk 0:00:35.7]} 31.
Rc2 {[%clk 0:00:50.6]} 31... Nxb2 {[%clk 0:00:27.1]} 32. Rxb5 {[%clk 0:00:50.6]}
32... c3 {[%clk 0:00:27.6]} 33. Rb4 {[%clk 0:00:31.9]} 33... f5 {[%clk
0:00:22.8]} 34. exf5 {[%clk 0:00:21.7]} 34... gxf5 {[%clk 0:00:22.4]} 35. Nd4
{[%clk 0:00:21.9]} 35... Be5+ {[%clk 0:00:20.2]} 36. Kg1 {[%clk 0:00:19.1]}
36... Nd1 {[%clk 0:00:19.2]} 37. Ne2 {[%clk 0:00:17.3]} 37... Ra8 {[%clk
0:00:16.1]} 38. f4 {[%clk 0:00:16.5]} 38... Bf6 {[%clk 0:00:14.9]} 39. Kh2
{[%clk 0:00:14.9]} 39... Ra1 {[%clk 0:00:13.5]} 40. Rc4 {[%clk 0:00:12.5]} 40...
Ne3 {[%clk 0:00:13.3]} 41. R4xc3 {[%clk 0:00:12.7]} 41... Nxc2 {[%clk
0:00:13.5]} 42. Rxc2 {[%clk 0:00:12.5]} 42... Rd1 {[%clk 0:00:14.1]} 43. Rc8+
{[%clk 0:00:11.5]} 43... Kf7 {[%clk 0:00:13.6]} 44. Ng3 {[%clk 0:00:11.8]} 44...
Rxd5 {[%clk 0:00:12.8]} 45. Rc7+ {[%clk 0:00:12.4]} 45... Kg6 {[%clk 0:00:12.9]}
46. Rd7 {[%clk 0:00:12.5]} 46... Rd2 {[%clk 0:00:12.8]} 47. Ra7 {[%clk
0:00:12.2]} 47... d5 {[%clk 0:00:11]} 48. Ra5 {[%clk 0:00:12.3]} 48... h5 {[%clk
0:00:11.1]} 49. Nf1 {[%clk 0:00:12]} 49... Rd3 {[%clk 0:00:11.4]} 50. Ra2 {[%clk
0:00:09.9]} 50... h4 {[%clk 0:00:11.6]} 51. Rd2 {[%clk 0:00:10]} 51... Rxd2
{[%clk 0:00:10.7]} 52. Nxd2 {[%clk 0:00:10.9]} 52... Bd8 {[%clk 0:00:10.8]} 53.
Kg1 {[%clk 0:00:11]} 53... Bb6+ {[%clk 0:00:09.8]} 54. Kf1 {[%clk 0:00:10.3]}
54... Be3 {[%clk 0:00:10.3]} 55. Nf3 {[%clk 0:00:10.4]} 55... Bxf4 {[%clk
0:00:10.8]} 56. Nxh4+ {[%clk 0:00:10.7]} 56... Kf6 {[%clk 0:00:11.5]} 57. Nf3
{[%clk 0:00:11.2]} 57... Bg3 {[%clk 0:00:11.7]} 58. Ke2 {[%clk 0:00:11.8]} 58...
Bc7 {[%clk 0:00:09.7]} 59. Kd3 {[%clk 0:00:12.7]} 59... Bb6 {[%clk 0:00:10.2]}
60. Nd4 {[%clk 0:00:12]} 60... f4 {[%clk 0:00:10.3]} 61. Ne2 {[%clk 0:00:11.8]}
61... Kf5 {[%clk 0:00:10.4]} 62. Nd4+ {[%clk 0:00:09.1]} 62... Ke5 {[%clk
0:00:10.9]} 63. Nf3+ {[%clk 0:00:09.3]} 63... Kf5 {[%clk 0:00:11.1]} 64. Nd4+
{[%clk 0:00:09.7]} 64... Kg5 {[%clk 0:00:11.6]} 65. Nf3+ {[%clk 0:00:10.1]}
65... Kf6 {[%clk 0:00:11.2]} 66. Nd4 {[%clk 0:00:10.3]} 66... Bc5 {[%clk
0:00:10.6]} 67. Nf3 {[%clk 0:00:10.6]} 67... Kf5 {[%clk 0:00:10.6]} 68. Nd4+
{[%clk 0:00:11]} 68... Ke5 {[%clk 0:00:11.1]} 69. Nf3+ {[%clk 0:00:11.4]} 69...
Kf5 {[%clk 0:00:11.7]} 70. Nd4+ {[%clk 0:00:12]} 70... Ke5 {[%clk 0:00:12.2]}
71. Nf3+ {[%clk 0:00:12.5]} 71... Kf5 {[%clk 0:00:12.8]} 1/2-1/2

[Event "*** Titled Tuesday Blitz"]
[Site "Chess.com"]
[Date "2020.05.12"]
[Round "1"]
[White "obliviate12"]
[Black "realmadridtv"]
[Result "0-1"]
[WhiteElo "2789"]
[BlackElo "2439"]
[TimeControl "180+1"]
[EndTime "10:08:48 PDT"]
[Termination "realmadridtv won on time"]

1. e4 {[%clk 0:02:59.4]} 1... e5 {[%clk 0:02:59.5]} 2. Nf3 {[%clk 0:02:59.2]}
2... Nc6 {[%clk 0:02:58.4]} 3. Bc4 {[%clk 0:02:59.5]} 3... Bc5 {[%clk
0:02:57.6]} 4. c3 {[%clk 0:02:59.6]} 4... Nf6 {[%clk 0:02:56.9]} 5. d3 {[%clk
0:03:00.1]} 5... a6 {[%clk 0:02:56]} 6. a4 {[%clk 0:02:58.4]} 6... d6 {[%clk
0:02:53.1]} 7. Bg5 {[%clk 0:02:58.5]} 7... h6 {[%clk 0:02:51.9]} 8. Bh4 {[%clk
0:02:58.9]} 8... g5 {[%clk 0:02:50.8]} 9. Bg3 {[%clk 0:02:58.3]} 9... Ba7 {[%clk
0:02:48.2]} 10. O-O {[%clk 0:02:58]} 10... Bg4 {[%clk 0:02:40.7]} 11. Nbd2
{[%clk 0:02:56.5]} 11... O-O {[%clk 0:02:33]} 12. Re1 {[%clk 0:02:39.2]} 12...
Qe7 {[%clk 0:02:26.6]} 13. Nf1 {[%clk 0:02:37.8]} 13... Rae8 {[%clk 0:02:18.5]}
14. Ne3 {[%clk 0:02:32.5]} 14... Bxe3 {[%clk 0:02:17.9]} 15. fxe3 {[%clk
0:02:31.7]} 15... a5 {[%clk 0:02:04]} 16. Rf1 {[%clk 0:02:30]} 16... Kg7 {[%clk
0:01:59.8]} 17. Qb3 {[%clk 0:02:17]} 17... Nd8 {[%clk 0:01:55.4]} 18. Rae1
{[%clk 0:02:16]} 18... Be6 {[%clk 0:01:51]} 19. Nd2 {[%clk 0:01:23.7]} 19... Nd7
{[%clk 0:01:36.7]} 20. Qc2 {[%clk 0:01:23.2]} 20... Nb6 {[%clk 0:01:34.7]} 21.
Bb3 {[%clk 0:01:19.6]} 21... Bxb3 {[%clk 0:01:30.2]} 22. Qxb3 {[%clk 0:01:18.8]}
22... Qe6 {[%clk 0:01:30.7]} 23. Qc2 {[%clk 0:01:18.9]} 23... Nd7 {[%clk
0:01:26.6]} 24. Rf5 {[%clk 0:01:18.7]} 24... Nc6 {[%clk 0:01:24.2]} 25. Ref1
{[%clk 0:01:17.2]} 25... f6 {[%clk 0:01:24.5]} 26. h3 {[%clk 0:01:15.5]} 26...
Ne7 {[%clk 0:01:24.2]} 27. R5f2 {[%clk 0:01:15.1]} 27... Nb6 {[%clk 0:01:22.5]}
28. Bh2 {[%clk 0:01:14.5]} 28... Rd8 {[%clk 0:01:19.6]} 29. b3 {[%clk
0:01:05.1]} 29... c5 {[%clk 0:01:16.4]} 30. d4 {[%clk 0:01:02.5]} 30... Rc8
{[%clk 0:01:11.5]} 31. d5 {[%clk 0:00:56.5]} 31... Qg8 {[%clk 0:01:05.7]} 32. c4
{[%clk 0:00:56.3]} 32... Ng6 {[%clk 0:01:05]} 33. Qc3 {[%clk 0:00:55.5]} 33...
Ra8 {[%clk 0:01:03.6]} 34. Rb1 {[%clk 0:00:51.9]} 34... Nd7 {[%clk 0:01:00.3]}
35. Nf1 {[%clk 0:00:52]} 35... b6 {[%clk 0:00:57.1]} 36. Ng3 {[%clk 0:00:52.2]}
36... Nh4 {[%clk 0:00:51.5]} 37. Rbf1 {[%clk 0:00:51.5]} 37... Qf7 {[%clk
0:00:47.6]} 38. Qd3 {[%clk 0:00:50.1]} 38... Qg6 {[%clk 0:00:46.6]} 39. Qe2
{[%clk 0:00:50]} 39... Rf7 {[%clk 0:00:42.6]} 40. Qg4 {[%clk 0:00:49.9]} 40...
Raf8 {[%clk 0:00:40.2]} 41. Nh5+ {[%clk 0:00:36.3]} 41... Kh8 {[%clk 0:00:38.4]}
42. g3 {[%clk 0:00:23.6]} 42... f5 {[%clk 0:00:38.8]} 43. Qe2 {[%clk 0:00:23.6]}
43... g4 {[%clk 0:00:36.6]} 44. gxh4 {[%clk 0:00:23.4]} 44... Qxh5 {[%clk
0:00:35.9]} 45. exf5 {[%clk 0:00:22.9]} 45... Rxf5 {[%clk 0:00:32.9]} 46. Rxf5
{[%clk 0:00:22.1]} 46... Rxf5 {[%clk 0:00:31]} 47. Rxf5 {[%clk 0:00:22.2]} 47...
Qxf5 {[%clk 0:00:30]} 48. hxg4 {[%clk 0:00:23.1]} 48... Qe4 {[%clk 0:00:28.1]}
49. Kf2 {[%clk 0:00:20.5]} 49... Nf6 {[%clk 0:00:27.6]} 50. Kg3 {[%clk
0:00:20.8]} 50... Qb1 {[%clk 0:00:26.3]} 51. h5 {[%clk 0:00:20.6]} 51... Ne4+
{[%clk 0:00:25.8]} 52. Kh3 {[%clk 0:00:20.4]} 52... Ng5+ {[%clk 0:00:23.6]} 53.
Kh4 {[%clk 0:00:20.8]} 53... Qh1 {[%clk 0:00:20.5]} 54. Qf2 {[%clk 0:00:18.9]}
54... Kg7 {[%clk 0:00:15.8]} 55. Qe2 {[%clk 0:00:14.3]} 55... Nf3+ {[%clk
0:00:13.6]} 56. Kg3 {[%clk 0:00:14.4]} 56... Ng5 {[%clk 0:00:13.9]} 57. Qg2
{[%clk 0:00:12.3]} 57... Qe1+ {[%clk 0:00:12.5]} 0-1

[Event "*** Titled Tuesday Blitz"]
[Site "Chess.com"]
[Date "2020.05.12"]
[Round "1"]
[White "Anuar_Is"]
[Black "Ekka83"]
[Result "1-0"]
[WhiteElo "2771"]
[BlackElo "2406"]
[TimeControl "180+1"]
[EndTime "10:08:51 PDT"]
[Termination "Anuar_Is won on time"]

1. e4 {[%clk 0:03:00.9]} 1... e6 {[%clk 0:02:59.3]} 2. d4 {[%clk 0:03:00.5]}
2... d5 {[%clk 0:02:56]} 3. Nc3 {[%clk 0:03:01.1]} 3... Nf6 {[%clk 0:02:54.7]}
4. e5 {[%clk 0:03:01.4]} 4... Nfd7 {[%clk 0:02:53.2]} 5. f4 {[%clk 0:03:01.6]}
5... c5 {[%clk 0:02:49]} 6. Nf3 {[%clk 0:03:01.4]} 6... Nc6 {[%clk 0:02:48.7]}
7. Be3 {[%clk 0:03:00.3]} 7... cxd4 {[%clk 0:02:48.3]} 8. Nxd4 {[%clk
0:02:59.9]} 8... Bc5 {[%clk 0:02:44.3]} 9. Qd2 {[%clk 0:02:59.4]} 9... Nxd4
{[%clk 0:02:39.1]} 10. Bxd4 {[%clk 0:03:00.3]} 10... Bxd4 {[%clk 0:02:39.6]} 11.
Qxd4 {[%clk 0:03:00.6]} 11... Qb6 {[%clk 0:02:40.2]} 12. Qxb6 {[%clk 0:03:00.7]}
12... Nxb6 {[%clk 0:02:40.5]} 13. h4 {[%clk 0:03:00.1]} 13... h5 {[%clk
0:02:38.2]} 14. O-O-O {[%clk 0:02:59]} 14... g6 {[%clk 0:02:38]} 15. Rh3 {[%clk
0:02:54]} 15... Ke7 {[%clk 0:02:37.4]} 16. Ne2 {[%clk 0:02:51]} 16... Bd7 {[%clk
0:02:36.4]} 17. Rb3 {[%clk 0:02:49.2]} 17... Rac8 {[%clk 0:02:34.4]} 18. Nd4
{[%clk 0:02:48.6]} 18... Ba4 {[%clk 0:02:32.2]} 19. Ra3 {[%clk 0:02:47.3]} 19...
a6 {[%clk 0:02:26.6]} 20. g3 {[%clk 0:02:46.7]} 20... Rc7 {[%clk 0:02:24.8]} 21.
Rd2 {[%clk 0:02:46.1]} 21... Rhc8 {[%clk 0:02:24.4]} 22. Re3 {[%clk 0:02:35]}
22... Nd7 {[%clk 0:02:19]} 23. b3 {[%clk 0:02:34.2]} 23... Bc6 {[%clk
0:02:17.1]} 24. Kb2 {[%clk 0:02:33.1]} 24... Nc5 {[%clk 0:02:16.9]} 25. a4
{[%clk 0:02:26.7]} 25... Bd7 {[%clk 0:02:15.1]} 26. Rd1 {[%clk 0:02:21.9]} 26...
Ne4 {[%clk 0:02:12.3]} 27. Bd3 {[%clk 0:02:17.2]} 27... Nf2 {[%clk 0:02:11.7]}
28. Rd2 {[%clk 0:02:17.2]} 28... Nxd3+ {[%clk 0:02:06.1]} 29. Rexd3 {[%clk
0:02:16.3]} 29... b5 {[%clk 0:02:06.2]} 30. axb5 {[%clk 0:02:12.9]} 30... axb5
{[%clk 0:02:07.1]} 31. b4 {[%clk 0:02:10.5]} 31... Rc4 {[%clk 0:02:06.2]} 32. c3
{[%clk 0:02:10.4]} 32... Ra8 {[%clk 0:02:04.3]} 33. Rd1 {[%clk 0:02:08.4]} 33...
f6 {[%clk 0:01:57.8]} 34. Re3 {[%clk 0:02:04.6]} 34... Ra4 {[%clk 0:01:51.6]}
35. exf6+ {[%clk 0:02:01.3]} 35... Kxf6 {[%clk 0:01:52.5]} 36. Rde1 {[%clk
0:01:59.2]} 36... Rxd4 {[%clk 0:01:48.6]} 37. cxd4 {[%clk 0:01:58.8]} 37...
Rxb4+ {[%clk 0:01:49.1]} 38. Kc3 {[%clk 0:01:58.3]} 38... Rc4+ {[%clk
0:01:49.4]} 39. Kd3 {[%clk 0:01:58.4]} 39... b4 {[%clk 0:01:49.7]} 40. R3e2
{[%clk 0:01:54]} 40... Rc3+ {[%clk 0:01:37.9]} 41. Kd2 {[%clk 0:01:54.3]} 41...
Rxg3 {[%clk 0:01:37.6]} 42. Re5 {[%clk 0:01:53.3]} 42... Rg4 {[%clk 0:01:27.8]}
43. Ke3 {[%clk 0:01:49.8]} 43... Rxh4 {[%clk 0:01:26.6]} 44. Rf1 {[%clk
0:01:46]} 44... b3 {[%clk 0:01:18.7]} 45. Kd2 {[%clk 0:01:44.5]} 45... Bb5
{[%clk 0:01:09]} 46. Rf2 {[%clk 0:01:38]} 46... Rh3 {[%clk 0:01:03.2]} 47. Rg5
{[%clk 0:01:30.4]} 47... Rd3+ {[%clk 0:01:02]} 48. Kc1 {[%clk 0:01:30.6]} 48...
Rxd4 {[%clk 0:01:01.6]} 49. Rg3 {[%clk 0:01:28.6]} 49... Bd3 {[%clk 0:00:57.8]}
50. Kb2 {[%clk 0:01:17.1]} 50... Bc4 {[%clk 0:00:48.6]} 51. Rfg2 {[%clk
0:01:13.6]} 51... Rxf4 {[%clk 0:00:47.2]} 52. Rxg6+ {[%clk 0:01:13.5]} 52... Ke5
{[%clk 0:00:47.4]} 53. R2g5+ {[%clk 0:01:12]} 53... Kd6 {[%clk 0:00:43.3]} 54.
Rg2 {[%clk 0:01:04.4]} 54... h4 {[%clk 0:00:33.4]} 55. Rh6 {[%clk 0:01:04.2]}
55... d4 {[%clk 0:00:25.7]} 56. Rh2 {[%clk 0:01:02.9]} 56... Kd5 {[%clk
0:00:20.2]} 57. Ka3 {[%clk 0:01:02.3]} 57... e5 {[%clk 0:00:19.4]} 58. Kb4
{[%clk 0:01:02.2]} 58... d3 {[%clk 0:00:13.6]} 59. Rh8 {[%clk 0:00:59.6]} 59...
Ba6+ {[%clk 0:00:11.3]} 60. Kc3 {[%clk 0:00:59.3]} 60... e4 {[%clk 0:00:10.8]}
61. Rh5+ {[%clk 0:00:57.6]} 61... Kc6 {[%clk 0:00:10.3]} 62. Rg2 {[%clk
0:00:55.7]} 62... Rf6 {[%clk 0:00:07.7]} 63. Kd4 {[%clk 0:00:45.8]} 63... Re6
{[%clk 0:00:06.6]} 64. Ke3 {[%clk 0:00:45.5]} 64... Kd6 {[%clk 0:00:05]} 65.
Rxh4 {[%clk 0:00:42.6]} 65... Bb7 {[%clk 0:00:05.3]} 66. Rh5 {[%clk 0:00:40.6]}
66... Bd5 {[%clk 0:00:04.6]} 67. Rgg5 {[%clk 0:00:39]} 67... Bc6 {[%clk
0:00:04.6]} 68. Rh2 {[%clk 0:00:37]} 68... Rf6 {[%clk 0:00:04.3]} 69. Kd4 {[%clk
0:00:34.4]} 69... Rf3 {[%clk 0:00:01.9]} 70. Rh6+ {[%clk 0:00:32.1]} 70... Kc7
{[%clk 0:00:01.5]} 71. Rc5 {[%clk 0:00:32.4]} 1-0

[Event "*** Titled Tuesday Blitz"]
[Site "Chess.com"]
[Date "2020.05.12"]
[Round "1"]
[White "PavelShkapenko"]
[Black "Pintacara"]
[Result "1-0"]
[WhiteElo "2623"]
[BlackElo "2301"]
[TimeControl "180+1"]
[EndTime "10:08:54 PDT"]
[Termination "PavelShkapenko won on time"]

1. e4 {[%clk 0:03:00.9]} 1... c5 {[%clk 0:02:57.6]} 2. c3 {[%clk 0:03:00.7]}
2... e6 {[%clk 0:02:57.5]} 3. d4 {[%clk 0:03:00.4]} 3... Nf6 {[%clk 0:02:55.1]}
4. e5 {[%clk 0:03:00.3]} 4... Nd5 {[%clk 0:02:55.3]} 5. Nf3 {[%clk 0:02:59.7]}
5... cxd4 {[%clk 0:02:54.3]} 6. cxd4 {[%clk 0:02:59.8]} 6... b6 {[%clk
0:02:53.5]} 7. Nc3 {[%clk 0:02:59.3]} 7... Bb7 {[%clk 0:02:53.9]} 8. Bd3 {[%clk
0:02:57.6]} 8... d6 {[%clk 0:02:49.1]} 9. O-O {[%clk 0:02:56.6]} 9... Be7 {[%clk
0:02:46.1]} 10. exd6 {[%clk 0:02:26.9]} 10... Qxd6 {[%clk 0:02:47]} 11. Ne4
{[%clk 0:02:26.7]} 11... Qd8 {[%clk 0:02:45.5]} 12. Ne5 {[%clk 0:02:23.8]} 12...
O-O {[%clk 0:02:42]} 13. Qh5 {[%clk 0:02:23.7]} 13... g6 {[%clk 0:02:33.8]} 14.
Qh6 {[%clk 0:02:23]} 14... Nd7 {[%clk 0:02:29.7]} 15. Ng5 {[%clk 0:02:20.3]}
15... N7f6 {[%clk 0:01:47.7]} 16. Nxg6 {[%clk 0:02:17.4]} 16... hxg6 {[%clk
0:01:44.4]} 17. Bxg6 {[%clk 0:02:17.9]} 17... fxg6 {[%clk 0:01:25.6]} 18. Qxg6+
{[%clk 0:02:17.7]} 18... Kh8 {[%clk 0:01:25]} 19. Qh6+ {[%clk 0:02:17.7]} 19...
Kg8 {[%clk 0:01:24.9]} 20. Nxe6 {[%clk 0:02:17.2]} 20... Rf7 {[%clk 0:01:23.6]}
21. Qg6+ {[%clk 0:02:06]} 21... Kh8 {[%clk 0:01:18.6]} 22. Nxd8 {[%clk
0:02:06.2]} 22... Rg7 {[%clk 0:01:16.5]} 23. Qh6+ {[%clk 0:01:32.6]} 23... Kg8
{[%clk 0:01:16.1]} 24. Ne6 {[%clk 0:01:20.5]} 24... Rh7 {[%clk 0:01:12]} 25.
Qg6+ {[%clk 0:01:18.8]} 25... Kh8 {[%clk 0:01:12.5]} 26. Ng5 {[%clk 0:01:03.8]}
26... Rg7 {[%clk 0:01:11.8]} 27. Qh6+ {[%clk 0:00:58.5]} 27... Kg8 {[%clk
0:01:04.9]} 28. Qh3 {[%clk 0:00:55.4]} 28... Bc8 {[%clk 0:00:59]} 29. Qb3 {[%clk
0:00:50.8]} 29... Bb7 {[%clk 0:00:51.9]} 30. Bd2 {[%clk 0:00:50.8]} 30... Rd8
{[%clk 0:00:47.3]} 31. Rfe1 {[%clk 0:00:50.4]} 31... Rd7 {[%clk 0:00:43.6]} 32.
f3 {[%clk 0:00:49]} 32... a5 {[%clk 0:00:35.2]} 33. Ne4 {[%clk 0:00:49]} 33...
Nxe4 {[%clk 0:00:34.5]} 34. fxe4 {[%clk 0:00:48.6]} 34... a4 {[%clk 0:00:34.3]}
35. Qb5 {[%clk 0:00:43.4]} 35... Nf6 {[%clk 0:00:33.9]} 36. Qf5 {[%clk 0:00:38]}
36... Bc8 {[%clk 0:00:33.3]} 37. Qf3 {[%clk 0:00:37.9]} 37... Bb7 {[%clk
0:00:33.1]} 38. Bf4 {[%clk 0:00:36]} 38... Ng4 {[%clk 0:00:32.6]} 39. Bg3 {[%clk
0:00:34.6]} 39... Bf6 {[%clk 0:00:32.9]} 40. Rad1 {[%clk 0:00:32.8]} 40... Bxd4+
{[%clk 0:00:33.3]} 41. Rxd4 {[%clk 0:00:32.7]} 41... Rxd4 {[%clk 0:00:34.2]} 42.
Qf5 {[%clk 0:00:30.8]} 42... Rdd7 {[%clk 0:00:34]} 43. e5 {[%clk 0:00:30]} 43...
Rde7 {[%clk 0:00:33.7]} 44. e6 {[%clk 0:00:29.7]} 44... Nh6 {[%clk 0:00:34]} 45.
Qf6 {[%clk 0:00:28.6]} 45... Ng4 {[%clk 0:00:33.8]} 46. Qd4 {[%clk 0:00:28.7]}
46... Kh7 {[%clk 0:00:33.6]} 47. Qxa4 {[%clk 0:00:23.8]} 47... Bd5 {[%clk
0:00:33.4]} 48. Bh4 {[%clk 0:00:22.6]} 48... Rxe6 {[%clk 0:00:31.2]} 49. Rxe6
{[%clk 0:00:22.8]} 49... Bxe6 {[%clk 0:00:32.1]} 50. h3 {[%clk 0:00:23.3]} 50...
Nh6 {[%clk 0:00:29.2]} 51. Kh2 {[%clk 0:00:23.1]} 51... Rg6 {[%clk 0:00:29.1]}
52. Bg3 {[%clk 0:00:23.3]} 52... Nf7 {[%clk 0:00:30]} 53. Qh4+ {[%clk
0:00:22.6]} 53... Kg7 {[%clk 0:00:29.9]} 54. Bf2 {[%clk 0:00:23.1]} 54... Bxa2
{[%clk 0:00:29.6]} 55. Bd4+ {[%clk 0:00:23.5]} 55... Kf8 {[%clk 0:00:28.9]} 56.
Qf4 {[%clk 0:00:23.7]} 56... Re6 {[%clk 0:00:27.9]} 57. Qb8+ {[%clk 0:00:23.4]}
57... Ke7 {[%clk 0:00:22.6]} 58. Bxb6 {[%clk 0:00:22.8]} 58... Bd5 {[%clk
0:00:22.9]} 59. Bc5+ {[%clk 0:00:22.8]} 59... Kf6 {[%clk 0:00:21.8]} 60. Qf4+
{[%clk 0:00:22.5]} 60... Kg6 {[%clk 0:00:20.6]} 61. b4 {[%clk 0:00:21.9]} 61...
Ng5 {[%clk 0:00:16.5]} 62. Be3 {[%clk 0:00:17.9]} 62... Nf7 {[%clk 0:00:14.4]}
63. Qg4+ {[%clk 0:00:17.8]} 63... Kf6 {[%clk 0:00:13.8]} 64. Bd4+ {[%clk
0:00:17.8]} 64... Ke7 {[%clk 0:00:13.4]} 65. b5 {[%clk 0:00:18.3]} 65... Kd7
{[%clk 0:00:11.4]} 66. b6 {[%clk 0:00:18.3]} 66... Nd6 {[%clk 0:00:10.6]} 67.
Qf4 {[%clk 0:00:17.2]} 67... Kc6 {[%clk 0:00:09.7]} 68. Qc1+ {[%clk 0:00:16.6]}
68... Nc4 {[%clk 0:00:09.3]} 69. Qf4 {[%clk 0:00:13.8]} 69... Re2 {[%clk
0:00:06.3]} 70. Qc7+ {[%clk 0:00:13.2]} 70... Kb5 {[%clk 0:00:06.8]} 71. Qc5+
{[%clk 0:00:13.4]} 71... Ka6 {[%clk 0:00:01.7]} 72. Qxd5 {[%clk 0:00:13.5]} 1-0

[Event "*** Titled Tuesday Blitz"]
[Site "Chess.com"]
[Date "2020.05.12"]
[Round "1"]
[White "SameerMujumdar"]
[Black "lionheart95"]
[Result "0-1"]
[WhiteElo "2174"]
[BlackElo "2529"]
[TimeControl "180+1"]
[EndTime "10:08:55 PDT"]
[Termination "lionheart95 won by resignation"]

1. e4 {[%clk 0:02:53.6]} 1... g6 {[%clk 0:02:59.6]} 2. Nf3 {[%clk 0:02:53.3]}
2... Bg7 {[%clk 0:02:59.6]} 3. d4 {[%clk 0:02:53.8]} 3... c6 {[%clk 0:02:59.7]}
4. Bd3 {[%clk 0:02:52.8]} 4... d5 {[%clk 0:02:59.7]} 5. e5 {[%clk 0:02:51.9]}
5... Nh6 {[%clk 0:02:51.4]} 6. O-O {[%clk 0:02:42]} 6... O-O {[%clk 0:02:50.2]}
7. Bg5 {[%clk 0:02:36.5]} 7... f6 {[%clk 0:02:49.4]} 8. exf6 {[%clk 0:02:36]}
8... exf6 {[%clk 0:02:48.9]} 9. Bf4 {[%clk 0:02:36.3]} 9... Nf7 {[%clk
0:02:23.4]} 10. c3 {[%clk 0:02:32.1]} 10... Nd7 {[%clk 0:02:22.1]} 11. Re1
{[%clk 0:02:30.6]} 11... g5 {[%clk 0:02:06.6]} 12. Bg3 {[%clk 0:02:27.8]} 12...
f5 {[%clk 0:02:02.9]} 13. Bxf5 {[%clk 0:02:23.9]} 13... Nf6 {[%clk 0:02:02.5]}
14. Bxc8 {[%clk 0:02:17.2]} 14... Rxc8 {[%clk 0:02:00.8]} 15. Nbd2 {[%clk
0:02:15.4]} 15... Qb6 {[%clk 0:01:32.2]} 16. Qb3 {[%clk 0:02:09.6]} 16... Rce8
{[%clk 0:01:24.2]} 17. h3 {[%clk 0:01:53.6]} 17... h6 {[%clk 0:01:21.7]} 18. a4
{[%clk 0:01:50]} 18... Qa6 {[%clk 0:01:09.5]} 19. Qc2 {[%clk 0:01:48.3]} 19...
Qa5 {[%clk 0:00:46.8]} 20. Nb3 {[%clk 0:01:39.6]} 20... Qd8 {[%clk 0:00:43.4]}
21. Nc5 {[%clk 0:01:37.7]} 21... Qc8 {[%clk 0:00:43.2]} 22. a5 {[%clk
0:01:33.7]} 22... b6 {[%clk 0:00:40.5]} 23. axb6 {[%clk 0:01:33.2]} 23... axb6
{[%clk 0:00:41]} 24. Nd3 {[%clk 0:01:32.5]} 24... Ne4 {[%clk 0:00:40.5]} 25. Bh2
{[%clk 0:01:30.7]} 25... g4 {[%clk 0:00:40.8]} 26. hxg4 {[%clk 0:01:29.5]} 26...
Qxg4 {[%clk 0:00:41.2]} 27. Re3 {[%clk 0:01:18.6]} 27... Qh5 {[%clk 0:00:25]}
28. Nf4 {[%clk 0:01:15.6]} 28... Qg4 {[%clk 0:00:22.2]} 29. Rae1 {[%clk
0:01:05.7]} 29... h5 {[%clk 0:00:16.7]} 30. Nd2 {[%clk 0:00:57.1]} 30... Nxd2
{[%clk 0:00:14.9]} 31. Qxd2 {[%clk 0:00:56.7]} 31... Rxe3 {[%clk 0:00:13.9]} 32.
Qxe3 {[%clk 0:00:51.8]} 32... Ng5 {[%clk 0:00:14.2]} 33. Kh1 {[%clk 0:00:45.5]}
33... h4 {[%clk 0:00:12.5]} 34. f3 {[%clk 0:00:36.6]} 34... Qf5 {[%clk
0:00:11.1]} 35. Ne6 {[%clk 0:00:33.2]} 35... Re8 {[%clk 0:00:09.8]} 36. Qxg5
{[%clk 0:00:09.7]} 36... Qxg5 {[%clk 0:00:09.4]} 37. Nxg5 {[%clk 0:00:10.6]}
37... Rxe1+ {[%clk 0:00:10.1]} 38. Bg1 {[%clk 0:00:11.5]} 38... Bh6 {[%clk
0:00:10.4]} 39. Nh3 {[%clk 0:00:09.9]} 39... Be3 {[%clk 0:00:09.9]} 40. Kh2
{[%clk 0:00:10.4]} 40... Bxg1+ {[%clk 0:00:10.3]} 41. Nxg1 {[%clk 0:00:11.3]}
41... Rb1 {[%clk 0:00:10.4]} 42. b4 {[%clk 0:00:11.3]} 42... Rc1 {[%clk
0:00:10.3]} 43. Ne2 {[%clk 0:00:11.2]} 43... Rc2 {[%clk 0:00:10.7]} 44. Nf4
{[%clk 0:00:11.5]} 44... Rxc3 {[%clk 0:00:10.8]} 45. b5 {[%clk 0:00:12.4]} 45...
cxb5 {[%clk 0:00:09.7]} 46. Nxd5 {[%clk 0:00:12.9]} 46... Rc4 {[%clk 0:00:09.9]}
47. Nc7 {[%clk 0:00:11.4]} 47... Rxd4 {[%clk 0:00:09.2]} 48. Nxb5 {[%clk
0:00:12.3]} 48... Rd5 {[%clk 0:00:07.9]} 49. Nc3 {[%clk 0:00:12]} 49... Rc5
{[%clk 0:00:06.8]} 50. Ne4 {[%clk 0:00:12.9]} 50... Rc6 {[%clk 0:00:04.8]} 51.
Kh3 {[%clk 0:00:13.3]} 51... b5 {[%clk 0:00:05]} 52. Kxh4 {[%clk 0:00:12.8]}
52... b4 {[%clk 0:00:05.4]} 53. Nd2 {[%clk 0:00:13]} 53... Rc3 {[%clk
0:00:05.5]} 54. g4 {[%clk 0:00:12]} 54... b3 {[%clk 0:00:05.5]} 55. Nxb3 {[%clk
0:00:12.6]} 55... Rxb3 {[%clk 0:00:05.2]} 56. f4 {[%clk 0:00:13.5]} 56... Rb4
{[%clk 0:00:04.9]} 57. f5 {[%clk 0:00:14.4]} 57... Kg7 {[%clk 0:00:05.1]} 58.
Kg5 {[%clk 0:00:15.3]} 58... Rd4 {[%clk 0:00:05.1]} 59. Kh5 {[%clk 0:00:14.8]}
59... Kf6 {[%clk 0:00:05.7]} 60. Kh6 {[%clk 0:00:14.6]} 60... Rxg4 {[%clk
0:00:05.5]} 61. Kh5 {[%clk 0:00:15.5]} 61... Kxf5 {[%clk 0:00:05.7]} 0-1